[Event "*** Titled Tuesday Blitz"]
[Site "Chess.com"]
[Date "2020.04.07"]
[Round "4"]
[White "Olga_Girya"]
[Black "Yaacovn"]
[Result "1-0"]
[WhiteElo "2560"]
[BlackElo "2732"]
[TimeControl "180+1"]
[EndTime "13:41:28 PDT"]
[Termination "Olga_Girya won on time"]

1. d4 {[%clk 0:03:00.9]} 1... Nf6 {[%clk 0:02:50.7]} 2. c4 {[%clk 0:03:00.5]}
2... e5 {[%clk 0:02:51]} 3. dxe5 {[%clk 0:02:59.4]} 3... Ne4 {[%clk 0:02:51.4]}
4. Nf3 {[%clk 0:02:50.6]} 4... Nc6 {[%clk 0:02:49.8]} 5. e3 {[%clk 0:02:45.9]}
5... d6 {[%clk 0:02:49.5]} 6. Bd3 {[%clk 0:02:37.8]} 6... Nc5 {[%clk 0:02:48.8]}
7. exd6 {[%clk 0:02:29.8]} 7... Bxd6 {[%clk 0:02:49.7]} 8. Be2 {[%clk
0:02:29.3]} 8... Bf5 {[%clk 0:02:35]} 9. O-O {[%clk 0:02:20.5]} 9... Qf6 {[%clk
0:02:34.3]} 10. Nd4 {[%clk 0:01:51.5]} 10... O-O-O {[%clk 0:02:33.3]} 11. Bg4
{[%clk 0:01:41.9]} 11... g6 {[%clk 0:01:50.4]} 12. Bxf5+ {[%clk 0:01:36.8]}
12... gxf5 {[%clk 0:01:50.4]} 13. Qf3 {[%clk 0:01:35.5]} 13... Nxd4 {[%clk
0:01:42.5]} 14. exd4 {[%clk 0:01:35]} 14... Qxd4 {[%clk 0:01:42]} 15. Qxf5+
{[%clk 0:01:27.6]} 15... Kb8 {[%clk 0:01:42.3]} 16. Nc3 {[%clk 0:01:16.1]} 16...
Qxc4 {[%clk 0:01:39.1]} 17. Bg5 {[%clk 0:01:08.3]} 17... Rde8 {[%clk 0:01:32.8]}
18. Rae1 {[%clk 0:01:06.5]} 18... a6 {[%clk 0:01:31.3]} 19. Nd5 {[%clk
0:00:44.9]} 19... h6 {[%clk 0:01:16.5]} 20. Bf6 {[%clk 0:00:30.2]} 20... Rhg8
{[%clk 0:01:13.2]} 21. b3 {[%clk 0:00:26.9]} 21... Qb5 {[%clk 0:01:07.5]} 22.
Rxe8+ {[%clk 0:00:25]} 22... Qxe8 {[%clk 0:01:04.3]} 23. Ne3 {[%clk 0:00:25.9]}
23... Ne4 {[%clk 0:01:00.1]} 24. Bh4 {[%clk 0:00:23.7]} 24... Nc3 {[%clk
0:00:49.3]} 25. Nc4 {[%clk 0:00:20.4]} 25... Qc6 {[%clk 0:00:37.5]} 26. Bg3
{[%clk 0:00:17.6]} 26... Ne2+ {[%clk 0:00:34.4]} 27. Kh1 {[%clk 0:00:17.2]}
27... Bxg3 {[%clk 0:00:32.1]} 28. fxg3 {[%clk 0:00:16.7]} 28... Qg6 {[%clk
0:00:15.3]} 29. Qxg6 {[%clk 0:00:15.9]} 29... fxg6 {[%clk 0:00:15.6]} 30. Re1
{[%clk 0:00:15.7]} 30... Nc3 {[%clk 0:00:15.7]} 31. a4 {[%clk 0:00:15.8]} 31...
Rd8 {[%clk 0:00:14.4]} 32. h4 {[%clk 0:00:15.6]} 32... Rd3 {[%clk 0:00:13.3]}
33. Kh2 {[%clk 0:00:15.1]} 33... Nd5 {[%clk 0:00:12.8]} 34. Re6 {[%clk
0:00:14.8]} 34... Rxb3 {[%clk 0:00:10.7]} 35. Rxg6 {[%clk 0:00:15.3]} 35... Rb4
{[%clk 0:00:11]} 36. Ne5 {[%clk 0:00:15.9]} 36... Rxa4 {[%clk 0:00:10.5]} 37.
Rxh6 {[%clk 0:00:16.2]} 37... Re4 {[%clk 0:00:10.6]} 38. Nd7+ {[%clk 0:00:14.9]}
38... Ka7 {[%clk 0:00:08.3]} 39. h5 {[%clk 0:00:15]} 39... a5 {[%clk 0:00:08.5]}
40. Rh8 {[%clk 0:00:14.3]} 40... Re7 {[%clk 0:00:08.2]} 41. Nc5 {[%clk
0:00:13.6]} 41... b6 {[%clk 0:00:08.6]} 42. Nd3 {[%clk 0:00:13]} 42... a4 {[%clk
0:00:08.2]} 43. h6 {[%clk 0:00:13.2]} 43... Nf6 {[%clk 0:00:08.4]} 44. Kh3
{[%clk 0:00:10.8]} 44... a3 {[%clk 0:00:08.5]} 45. g4 {[%clk 0:00:10.9]} 45...
Re3+ {[%clk 0:00:07.6]} 46. Kh4 {[%clk 0:00:10.9]} 46... Rxd3 {[%clk 0:00:08.2]}
47. h7 {[%clk 0:00:11.2]} 47... Nxh7 {[%clk 0:00:05.9]} 48. Rxh7 {[%clk
0:00:10.3]} 48... Rc3 {[%clk 0:00:05.2]} 49. Rf7 {[%clk 0:00:07.8]} 49... Rc1
{[%clk 0:00:03.6]} 50. Rf3 {[%clk 0:00:06.4]} 1-0

[Event "*** Titled Tuesday Blitz"]
[Site "Chess.com"]
[Date "2020.04.07"]
[Round "4"]
[White "Qvalda"]
[Black "Resignify"]
[Result "0-1"]
[WhiteElo "2401"]
[BlackElo "2221"]
[TimeControl "180+1"]
[EndTime "13:41:28 PDT"]
[Termination "Resignify won on time"]

1. e4 {[%clk 0:03:00.9]} 1... d6 {[%clk 0:02:59.7]} 2. Nc3 {[%clk 0:02:54.5]}
2... Nf6 {[%clk 0:02:59.4]} 3. f4 {[%clk 0:02:52]} 3... c5 {[%clk 0:02:52.8]} 4.
Nf3 {[%clk 0:02:49.5]} 4... Nc6 {[%clk 0:02:45]} 5. Bb5 {[%clk 0:02:48.7]} 5...
Qc7 {[%clk 0:02:24.8]} 6. O-O {[%clk 0:02:36.9]} 6... a6 {[%clk 0:02:22.7]} 7.
Bxc6+ {[%clk 0:02:32.7]} 7... Qxc6 {[%clk 0:02:20.7]} 8. e5 {[%clk 0:02:18.3]}
8... Nd5 {[%clk 0:02:12.4]} 9. d4 {[%clk 0:02:01.7]} 9... Nxc3 {[%clk
0:01:55.8]} 10. bxc3 {[%clk 0:02:02.6]} 10... Bg4 {[%clk 0:01:53.3]} 11. d5
{[%clk 0:01:54.4]} 11... Qc7 {[%clk 0:01:38.6]} 12. h3 {[%clk 0:01:44.6]} 12...
Bxf3 {[%clk 0:01:37.1]} 13. Qxf3 {[%clk 0:01:45.5]} 13... O-O-O {[%clk
0:01:14.4]} 14. c4 {[%clk 0:01:31.2]} 14... f5 {[%clk 0:01:00.5]} 15. Rb1 {[%clk
0:01:21.1]} 15... g6 {[%clk 0:00:46.1]} 16. Bb2 {[%clk 0:00:55.3]} 16... Bg7
{[%clk 0:00:43]} 17. Rfe1 {[%clk 0:00:48.7]} 17... Rhg8 {[%clk 0:00:39.7]} 18.
Qb3 {[%clk 0:00:42.4]} 18... Kb8 {[%clk 0:00:34.4]} 19. exd6 {[%clk 0:00:33.7]}
19... exd6 {[%clk 0:00:31.8]} 20. Re6 {[%clk 0:00:27.6]} 20... Bxb2 {[%clk
0:00:27.4]} 21. Qxb2 {[%clk 0:00:28.5]} 21... Rge8 {[%clk 0:00:24.3]} 22. Rbe1
{[%clk 0:00:26.1]} 22... Rxe6 {[%clk 0:00:22.7]} 23. Rxe6 {[%clk 0:00:27]} 23...
Qf7 {[%clk 0:00:15.1]} 24. Qb6 {[%clk 0:00:24.5]} 24... Qc7 {[%clk 0:00:11.3]}
25. Qb2 {[%clk 0:00:16.6]} 25... Qf7 {[%clk 0:00:10.6]} 26. Kh2 {[%clk
0:00:09.7]} 26... Kc7 {[%clk 0:00:09.3]} 27. Qc3 {[%clk 0:00:08.9]} 27... Qd7
{[%clk 0:00:05]} 28. Qf6 {[%clk 0:00:08.4]} 28... Kb8 {[%clk 0:00:03]} 29. Re7
{[%clk 0:00:08.1]} 29... Qc8 {[%clk 0:00:02.4]} 30. Qf7 {[%clk 0:00:07.4]} 30...
Ka7 {[%clk 0:00:02.7]} 31. Qxh7 {[%clk 0:00:07.3]} 31... Rg8 {[%clk 0:00:02.8]}
32. Qf7 {[%clk 0:00:07.1]} 32... g5 {[%clk 0:00:02.5]} 33. Qe6 {[%clk
0:00:06.9]} 33... gxf4 {[%clk 0:00:02.8]} 34. Qxc8 {[%clk 0:00:06.4]} 34... Rxc8
{[%clk 0:00:01.8]} 35. Rd7 {[%clk 0:00:05.9]} 35... Re8 {[%clk 0:00:02.5]} 36.
Rxd6 {[%clk 0:00:05.8]} 36... Re2 {[%clk 0:00:03.4]} 37. Kg1 {[%clk 0:00:06]}
37... Rxc2 {[%clk 0:00:02.9]} 38. Rf6 {[%clk 0:00:05.3]} 38... Rxc4 {[%clk
0:00:02.8]} 39. Rxf5 {[%clk 0:00:05.6]} 39... Rd4 {[%clk 0:00:02.7]} 40. h4
{[%clk 0:00:05.6]} 40... c4 {[%clk 0:00:03.1]} 41. h5 {[%clk 0:00:04.5]} 41...
c3 {[%clk 0:00:03.6]} 42. Rf6 {[%clk 0:00:01.4]} 42... c2 {[%clk 0:00:03.1]} 43.
Rxa6+ {[%clk 0:00:01.6]} 43... bxa6 {[%clk 0:00:02.8]} 44. Kh2 {[%clk
0:00:02.5]} 44... c1=Q {[%clk 0:00:03.7]} 45. h6 {[%clk 0:00:02.6]} 45... Qe3
{[%clk 0:00:04.6]} 0-1

[Event "*** Titled Tuesday Blitz"]
[Site "Chess.com"]
[Date "2020.04.07"]
[Round "4"]
[White "AryanTari"]
[Black "albi1999"]
[Result "1-0"]
[WhiteElo "2885"]
[BlackElo "2591"]
[TimeControl "180+1"]
[EndTime "13:41:30 PDT"]
[Termination "AryanTari won by resignation"]

1. e4 {[%clk 0:03:00.9]} 1... c6 {[%clk 0:02:57.8]} 2. d4 {[%clk 0:03:00.3]}
2... d5 {[%clk 0:02:53.9]} 3. e5 {[%clk 0:03:00.8]} 3... Bf5 {[%clk 0:02:51.5]}
4. h4 {[%clk 0:03:00.9]} 4... h5 {[%clk 0:02:50.5]} 5. c4 {[%clk 0:02:57.4]}
5... e6 {[%clk 0:02:50.4]} 6. Nc3 {[%clk 0:02:57.5]} 6... Ne7 {[%clk 0:02:34]}
7. Nge2 {[%clk 0:02:57.1]} 7... Nd7 {[%clk 0:02:28.7]} 8. Ng3 {[%clk 0:02:55.9]}
8... Bg6 {[%clk 0:02:27.8]} 9. cxd5 {[%clk 0:02:56]} 9... Nxd5 {[%clk
0:02:25.1]} 10. Be2 {[%clk 0:02:56.5]} 10... Qa5 {[%clk 0:02:21.6]} 11. Bd2
{[%clk 0:02:52.4]} 11... Qb6 {[%clk 0:02:12.2]} 12. Nxd5 {[%clk 0:02:43]} 12...
cxd5 {[%clk 0:02:11]} 13. Bc3 {[%clk 0:02:37]} 13... Be7 {[%clk 0:01:49.8]} 14.
Nxh5 {[%clk 0:01:59.3]} 14... Bxh5 {[%clk 0:01:47.3]} 15. Bxh5 {[%clk
0:02:00.2]} 15... g6 {[%clk 0:01:46.9]} 16. Be2 {[%clk 0:01:59.8]} 16... Rxh4
{[%clk 0:01:44.7]} 17. Rxh4 {[%clk 0:02:00]} 17... Bxh4 {[%clk 0:01:45.6]} 18.
Qa4 {[%clk 0:01:56.4]} 18... a6 {[%clk 0:01:42.1]} 19. g3 {[%clk 0:01:53.6]}
19... Be7 {[%clk 0:01:40.9]} 20. Kf1 {[%clk 0:01:49.2]} 20... Rc8 {[%clk
0:01:38.4]} 21. Kg2 {[%clk 0:01:48.1]} 21... Qc6 {[%clk 0:01:37.1]} 22. Qd1
{[%clk 0:01:39.8]} 22... Nb6 {[%clk 0:01:20.1]} 23. Rc1 {[%clk 0:01:35]} 23...
Qa4 {[%clk 0:01:15.6]} 24. b3 {[%clk 0:01:28.7]} 24... Qd7 {[%clk 0:01:10.6]}
25. Qd3 {[%clk 0:01:24.7]} 25... Bb4 {[%clk 0:00:56.3]} 26. Bb2 {[%clk
0:01:13.9]} 26... Rxc1 {[%clk 0:00:55.8]} 27. Bxc1 {[%clk 0:01:14.8]} 27... Qc6
{[%clk 0:00:54.6]} 28. Bb2 {[%clk 0:01:08.9]} 28... Nc8 {[%clk 0:00:54.3]} 29.
a3 {[%clk 0:01:07]} 29... Be7 {[%clk 0:00:53.5]} 30. b4 {[%clk 0:01:06.5]} 30...
Na7 {[%clk 0:00:53.1]} 31. Qb3 {[%clk 0:01:04.6]} 31... b5 {[%clk 0:00:48.2]}
32. Qd3 {[%clk 0:00:39.9]} 32... Nc8 {[%clk 0:00:47.9]} 33. a4 {[%clk
0:00:40.3]} 33... Nb6 {[%clk 0:00:41.5]} 34. axb5 {[%clk 0:00:38.8]} 34... axb5
{[%clk 0:00:40.6]} 35. Qxb5 {[%clk 0:00:37.9]} 35... Qxb5 {[%clk 0:00:36.1]} 36.
Bxb5+ {[%clk 0:00:38.8]} 36... Kd8 {[%clk 0:00:36.8]} 37. Bc3 {[%clk 0:00:38.8]}
37... Nc4 {[%clk 0:00:31.2]} 38. Kf3 {[%clk 0:00:27.2]} 38... f6 {[%clk
0:00:26.7]} 39. Ke2 {[%clk 0:00:18.1]} 39... fxe5 {[%clk 0:00:25.8]} 40. dxe5
{[%clk 0:00:19]} 40... Kc7 {[%clk 0:00:21.5]} 41. Kd3 {[%clk 0:00:14.2]} 41...
Nb6 {[%clk 0:00:18.5]} 42. f4 {[%clk 0:00:08]} 42... g5 {[%clk 0:00:17]} 43.
fxg5 {[%clk 0:00:07.9]} 43... Bxg5 {[%clk 0:00:16.6]} 44. g4 {[%clk 0:00:08.6]}
44... Kd8 {[%clk 0:00:15.4]} 45. Bd2 {[%clk 0:00:08.3]} 45... Nd7 {[%clk
0:00:15.9]} 46. Bxg5+ {[%clk 0:00:07.1]} 1-0

[Event "*** Titled Tuesday Blitz"]
[Site "Chess.com"]
[Date "2020.04.07"]
[Round "4"]
[White "Bastiandash"]
[Black "dachessmandan"]
[Result "1-0"]
[WhiteElo "1963"]
[BlackElo "2369"]
[TimeControl "180+1"]
[EndTime "13:41:30 PDT"]
[Termination "Bastiandash won by checkmate"]

1. d4 {[%clk 0:03:00.9]} 1... Nf6 {[%clk 0:02:58.4]} 2. Nf3 {[%clk 0:03:01.8]}
2... e6 {[%clk 0:02:58.1]} 3. c3 {[%clk 0:02:59.3]} 3... b6 {[%clk 0:02:56.9]}
4. Bg5 {[%clk 0:02:55.2]} 4... Bb7 {[%clk 0:02:56]} 5. Nbd2 {[%clk 0:02:53.1]}
5... Be7 {[%clk 0:02:53.7]} 6. e3 {[%clk 0:02:51.8]} 6... Ne4 {[%clk 0:02:50.1]}
7. Bxe7 {[%clk 0:02:49.2]} 7... Qxe7 {[%clk 0:02:47.7]} 8. Bd3 {[%clk
0:02:46.1]} 8... d5 {[%clk 0:02:38.3]} 9. Qe2 {[%clk 0:02:47]} 9... Nxd2 {[%clk
0:02:33.5]} 10. Nxd2 {[%clk 0:02:45]} 10... f5 {[%clk 0:02:32.9]} 11. f3 {[%clk
0:02:44.1]} 11... O-O {[%clk 0:02:30.4]} 12. O-O {[%clk 0:02:43.7]} 12... Nd7
{[%clk 0:02:29.2]} 13. e4 {[%clk 0:02:43.3]} 13... fxe4 {[%clk 0:02:21.2]} 14.
fxe4 {[%clk 0:02:44.2]} 14... Rae8 {[%clk 0:02:20.8]} 15. Rae1 {[%clk
0:02:39.4]} 15... Rxf1+ {[%clk 0:02:10.7]} 16. Rxf1 {[%clk 0:02:39.1]} 16... e5
{[%clk 0:01:54.9]} 17. exd5 {[%clk 0:02:18.1]} 17... exd4 {[%clk 0:01:42.7]} 18.
Qh5 {[%clk 0:01:30.8]} 18... Nf6 {[%clk 0:01:26.7]} 19. Rxf6 {[%clk 0:00:48.8]}
19... gxf6 {[%clk 0:01:24.4]} 20. Bxh7+ {[%clk 0:00:48.3]} 20... Kg7 {[%clk
0:00:53.6]} 21. Be4 {[%clk 0:00:27.3]} 21... Rg8 {[%clk 0:00:33]} 22. cxd4
{[%clk 0:00:19.1]} 22... Kf8 {[%clk 0:00:28.2]} 23. Qf5 {[%clk 0:00:16.3]} 23...
Rg5 {[%clk 0:00:26.4]} 24. Qf4 {[%clk 0:00:16.5]} 24... Bxd5 {[%clk 0:00:23.5]}
25. Bxd5 {[%clk 0:00:16.7]} 25... Rxd5 {[%clk 0:00:24.4]} 26. Nf3 {[%clk
0:00:16.7]} 26... Ke8 {[%clk 0:00:20.2]} 27. h4 {[%clk 0:00:15.1]} 27... Rh5
{[%clk 0:00:17.2]} 28. Qg4 {[%clk 0:00:15.1]} 28... Rh7 {[%clk 0:00:16.9]} 29.
Qg8+ {[%clk 0:00:14.9]} 29... Kd7 {[%clk 0:00:17.1]} 30. Qd5+ {[%clk 0:00:15]}
30... Qd6 {[%clk 0:00:17.3]} 31. Qf5+ {[%clk 0:00:15.2]} 31... Kc6 {[%clk
0:00:14.3]} 32. Qxh7 {[%clk 0:00:13.9]} 32... Kb5 {[%clk 0:00:14.7]} 33. Qd3+
{[%clk 0:00:13.8]} 33... Kc6 {[%clk 0:00:14.2]} 34. d5+ {[%clk 0:00:13.8]} 34...
Kb7 {[%clk 0:00:14.1]} 35. h5 {[%clk 0:00:13.9]} 35... Qc5+ {[%clk 0:00:11.7]}
36. Kh2 {[%clk 0:00:09.6]} 36... a5 {[%clk 0:00:12.3]} 37. h6 {[%clk 0:00:09.2]}
37... Qc1 {[%clk 0:00:12.3]} 38. Qg6 {[%clk 0:00:07.8]} 38... Qf4+ {[%clk
0:00:12.4]} 39. Qg3 {[%clk 0:00:04.8]} 39... Qc1 {[%clk 0:00:12.9]} 40. h7
{[%clk 0:00:04.6]} 40... Qh6+ {[%clk 0:00:13]} 41. Qh4 {[%clk 0:00:04.6]} 41...
Qf4+ {[%clk 0:00:13.7]} 42. Qxf4 {[%clk 0:00:04.3]} 42... a4 {[%clk 0:00:14.6]}
43. h8=Q {[%clk 0:00:04.7]} 43... a3 {[%clk 0:00:15.5]} 44. Qhxf6 {[%clk
0:00:05.6]} 44... axb2 {[%clk 0:00:16.4]} 45. Q6d4 {[%clk 0:00:06.1]} 45... b1=Q
{[%clk 0:00:15]} 46. Qfe4 {[%clk 0:00:07]} 46... Qc1 {[%clk 0:00:11.8]} 47. d6+
{[%clk 0:00:07.1]} 47... c6 {[%clk 0:00:12.5]} 48. Qe7+ {[%clk 0:00:04.7]} 48...
Ka6 {[%clk 0:00:12.1]} 49. Qa4# {[%clk 0:00:04.7]} 1-0

[Event "*** Titled Tuesday Blitz"]
[Site "Chess.com"]
[Date "2020.04.07"]
[Round "4"]
[White "GMMelik"]
[Black "wonderfultime"]
[Result "0-1"]
[WhiteElo "2600"]
[BlackElo "2962"]
[TimeControl "180+1"]
[EndTime "13:41:31 PDT"]
[Termination "wonderfultime won by checkmate"]

1. e4 {[%clk 0:03:00]} 1... c5 {[%clk 0:03:00.3]} 2. Nf3 {[%clk 0:02:59.9]} 2...
Nf6 {[%clk 0:03:00.7]} 3. e5 {[%clk 0:02:58.6]} 3... Nd5 {[%clk 0:03:01.2]} 4.
Nc3 {[%clk 0:02:59.3]} 4... e6 {[%clk 0:03:01.3]} 5. Nxd5 {[%clk 0:02:58.8]}
5... exd5 {[%clk 0:03:02.2]} 6. d4 {[%clk 0:02:59.6]} 6... Nc6 {[%clk
0:03:02.4]} 7. Be2 {[%clk 0:02:55.7]} 7... cxd4 {[%clk 0:02:49]} 8. O-O {[%clk
0:02:55.7]} 8... d6 {[%clk 0:02:49.6]} 9. Bf4 {[%clk 0:02:42.6]} 9... Be7 {[%clk
0:01:40]} 10. exd6 {[%clk 0:02:38.6]} 10... Bxd6 {[%clk 0:01:40.9]} 11. Bxd6
{[%clk 0:02:39.5]} 11... Qxd6 {[%clk 0:01:41.8]} 12. Nxd4 {[%clk 0:02:38.2]}
12... O-O {[%clk 0:01:42.3]} 13. c3 {[%clk 0:02:26.4]} 13... Re8 {[%clk
0:01:40.3]} 14. Bb5 {[%clk 0:02:10.8]} 14... Bd7 {[%clk 0:01:38.3]} 15. Bxc6
{[%clk 0:02:11.3]} 15... bxc6 {[%clk 0:01:39.2]} 16. b4 {[%clk 0:02:11.8]} 16...
c5 {[%clk 0:01:15.6]} 17. bxc5 {[%clk 0:02:12.7]} 17... Qxc5 {[%clk 0:01:16.5]}
18. Qd2 {[%clk 0:02:12.3]} 18... Rac8 {[%clk 0:01:16]} 19. Rac1 {[%clk
0:02:10.9]} 19... h6 {[%clk 0:01:16.2]} 20. Rfe1 {[%clk 0:02:08.1]} 20... Qc4
{[%clk 0:01:12.1]} 21. Rxe8+ {[%clk 0:02:02.4]} 21... Rxe8 {[%clk 0:01:13]} 22.
f3 {[%clk 0:01:56.6]} 22... a5 {[%clk 0:01:02.9]} 23. Kf2 {[%clk 0:01:55.1]}
23... a4 {[%clk 0:01:01.6]} 24. Re1 {[%clk 0:01:41]} 24... Rc8 {[%clk
0:00:58.4]} 25. Re7 {[%clk 0:01:34]} 25... Bb5 {[%clk 0:00:50.6]} 26. Qf4 {[%clk
0:01:25.8]} 26... Rf8 {[%clk 0:00:45.7]} 27. Kg3 {[%clk 0:01:10.4]} 27... Ba6
{[%clk 0:00:30.1]} 28. Rc7 {[%clk 0:00:48]} 28... Qf1 {[%clk 0:00:18.9]} 29. Qe5
{[%clk 0:00:43.1]} 29... Bc8 {[%clk 0:00:13.6]} 30. h4 {[%clk 0:00:27.2]} 30...
Qd3 {[%clk 0:00:13.3]} 31. Qxd5 {[%clk 0:00:23.1]} 31... Be6 {[%clk 0:00:12.5]}
32. Qe5 {[%clk 0:00:20.6]} 32... Qg6+ {[%clk 0:00:10.4]} 33. Kh2 {[%clk
0:00:19.9]} 33... Bxa2 {[%clk 0:00:10.9]} 34. Nf5 {[%clk 0:00:18.6]} 34... Kh8
{[%clk 0:00:11.4]} 35. c4 {[%clk 0:00:13.8]} 35... Bb1 {[%clk 0:00:09]} 36. Nd4
{[%clk 0:00:13.3]} 36... a3 {[%clk 0:00:07.9]} 37. Rc6 {[%clk 0:00:13.3]} 37...
Qd3 {[%clk 0:00:06.8]} 38. Rxh6+ {[%clk 0:00:13]} 38... Kg8 {[%clk 0:00:06.6]}
39. Rd6 {[%clk 0:00:06.3]} 39... a2 {[%clk 0:00:06.5]} 40. Nc6 {[%clk
0:00:06.5]} 40... Qh7 {[%clk 0:00:05.2]} 41. Ne7+ {[%clk 0:00:06.2]} 41... Kh8
{[%clk 0:00:05.8]} 42. Ra6 {[%clk 0:00:05]} 42... Qxh4+ {[%clk 0:00:05.7]} 43.
Kg1 {[%clk 0:00:04.5]} 43... Rd8 {[%clk 0:00:06.2]} 44. g3 {[%clk 0:00:02.1]}
44... Rd1+ {[%clk 0:00:05.7]} 45. Kf2 {[%clk 0:00:02.3]} 45... Qh2+ {[%clk
0:00:06]} 46. Ke3 {[%clk 0:00:02.5]} 46... Qd2# {[%clk 0:00:06.3]} 0-1

[Event "*** Titled Tuesday Blitz"]
[Site "Chess.com"]
[Date "2020.04.07"]
[Round "4"]
[White "SanchezKelvin"]
[Black "GameOverBro"]
[Result "0-1"]
[WhiteElo "2327"]
[BlackElo "2502"]
[TimeControl "180+1"]
[EndTime "13:41:32 PDT"]
[Termination "GameOverBro won on time"]

1. d4 {[%clk 0:02:56]} 1... d6 {[%clk 0:03:00.1]} 2. Nf3 {[%clk 0:02:55.1]} 2...
Nf6 {[%clk 0:03:00.5]} 3. c4 {[%clk 0:02:55]} 3... Nbd7 {[%clk 0:02:59.1]} 4.
Nc3 {[%clk 0:02:54.8]} 4... e5 {[%clk 0:02:55.6]} 5. e4 {[%clk 0:02:53.4]} 5...
Be7 {[%clk 0:02:54]} 6. h3 {[%clk 0:02:44]} 6... O-O {[%clk 0:02:50.8]} 7. d5
{[%clk 0:02:42.9]} 7... Nc5 {[%clk 0:02:48.9]} 8. Qc2 {[%clk 0:02:41]} 8... a5
{[%clk 0:02:49.2]} 9. Be3 {[%clk 0:02:40.7]} 9... b6 {[%clk 0:02:32.9]} 10. Nd2
{[%clk 0:02:39.4]} 10... Ne8 {[%clk 0:02:23.3]} 11. g4 {[%clk 0:02:32.1]} 11...
Bg5 {[%clk 0:02:22.6]} 12. Bxg5 {[%clk 0:02:25.9]} 12... Qxg5 {[%clk 0:02:22.2]}
13. Be2 {[%clk 0:02:26.5]} 13... Bd7 {[%clk 0:02:01.9]} 14. O-O-O {[%clk
0:02:14]} 14... g6 {[%clk 0:01:37.1]} 15. Kb1 {[%clk 0:02:12.3]} 15... Ng7
{[%clk 0:01:34.8]} 16. h4 {[%clk 0:02:11.3]} 16... Qe7 {[%clk 0:01:28.1]} 17. h5
{[%clk 0:02:10.4]} 17... g5 {[%clk 0:01:15.9]} 18. h6 {[%clk 0:02:06.7]} 18...
Ne8 {[%clk 0:01:15]} 19. Nf1 {[%clk 0:02:05.8]} 19... Kh8 {[%clk 0:00:56.9]} 20.
Ng3 {[%clk 0:01:55.4]} 20... Rg8 {[%clk 0:00:55.8]} 21. Rh5 {[%clk 0:01:50.4]}
21... Qf6 {[%clk 0:00:53.7]} 22. Nf5 {[%clk 0:01:41.1]} 22... a4 {[%clk
0:00:37.7]} 23. Qd2 {[%clk 0:01:28.4]} 23... Rg6 {[%clk 0:00:37.3]} 24. Rdh1
{[%clk 0:01:23.6]} 24... Ra5 {[%clk 0:00:36.4]} 25. Bd3 {[%clk 0:01:13.4]} 25...
Bc8 {[%clk 0:00:34.7]} 26. Bf1 {[%clk 0:00:59.3]} 26... Bd7 {[%clk 0:00:34.8]}
27. f3 {[%clk 0:00:59.4]} 27... c6 {[%clk 0:00:33.5]} 28. dxc6 {[%clk
0:00:58.7]} 28... Bxc6 {[%clk 0:00:34.4]} 29. Be2 {[%clk 0:00:57.1]} 29... Qe6
{[%clk 0:00:33.2]} 30. Nd5 {[%clk 0:00:56.3]} 30... Bxd5 {[%clk 0:00:31.6]} 31.
cxd5 {[%clk 0:00:51]} 31... Qf6 {[%clk 0:00:32]} 32. Ka1 {[%clk 0:00:45.6]}
32... Qd8 {[%clk 0:00:31.7]} 33. Qb4 {[%clk 0:00:43.9]} 33... Ra8 {[%clk
0:00:28.5]} 34. Bb5 {[%clk 0:00:39.5]} 34... Nc7 {[%clk 0:00:26.2]} 35. Bc6
{[%clk 0:00:39.6]} 35... Ra7 {[%clk 0:00:25.9]} 36. Qxb6 {[%clk 0:00:38.7]}
36... Ra6 {[%clk 0:00:23.8]} 37. Qb4 {[%clk 0:00:36.2]} 37... Nd3 {[%clk
0:00:22.6]} 38. Qc4 {[%clk 0:00:33.2]} 38... Nc5 {[%clk 0:00:23.5]} 39. R5h2
{[%clk 0:00:32.7]} 39... Qb8 {[%clk 0:00:23.5]} 40. Rc2 {[%clk 0:00:31]} 40...
Qa7 {[%clk 0:00:23.6]} 41. Kb1 {[%clk 0:00:29.8]} 41... Ra5 {[%clk 0:00:23.9]}
42. Rhc1 {[%clk 0:00:28]} 42... N7a6 {[%clk 0:00:24.1]} 43. Qe2 {[%clk
0:00:26.4]} 43... Nb8 {[%clk 0:00:24.2]} 44. Bb5 {[%clk 0:00:25.4]} 44... Qb6
{[%clk 0:00:23.9]} 45. Bc6 {[%clk 0:00:23.4]} 45... Nba6 {[%clk 0:00:21.2]} 46.
Qc4 {[%clk 0:00:22.4]} 46... Nb4 {[%clk 0:00:20.6]} 47. Rc3 {[%clk 0:00:22.4]}
47... Nba6 {[%clk 0:00:19.8]} 48. a3 {[%clk 0:00:22.1]} 48... Nb3 {[%clk
0:00:18.9]} 0-1